[Event "Live Chess"]
[Site "Chess.com"]
[Date "2011.02.01"]
[Round "-"]
[White "rodolf"]
[Black "hipposcottimus"]
[Result "0-1"]
[CurrentPosition "3r3k/p5pp/1p6/3q1r2/3Pp3/1NP1Q3/PPK3PP/R1B4R w - -"]
[Timezone "UTC"]
[ECO "C20"]
[ECOUrl "https://www.chess.com/openings/Kings-Pawn-Opening-Leonardis-Variation-2...d5"]
[UTCDate "2011.02.01"]
[UTCTime "05:16:49"]
[WhiteElo "1566"]
[BlackElo "1708"]
[TimeControl "60"]
[Termination "hipposcottimus won on time"]
[StartTime "05:16:49"]
[EndDate "2011.02.01"]
[EndTime "05:18:57"]
[Link "https://www.chess.com/game/live/93534201"]

1. e4 {[%clk 0:01:00]} 1... e5 {[%clk 0:01:00]} 2. d3 {[%clk 0:00:59.7]} 2... d5 {[%clk 0:00:58.1]} 3. f3 {[%clk 0:00:59]} 3... dxe4 {[%clk 0:00:57.3]} 4. fxe4 {[%clk 0:00:58.7]} 4... f5 {[%clk 0:00:56.3]} 5. Nc3 {[%clk 0:00:58.3]} 5... fxe4 {[%clk 0:00:55.2]} 6. Nxe4 {[%clk 0:00:57.9]} 6... Bf5 {[%clk 0:00:53.7]} 7. Qf3 {[%clk 0:00:54.9]} 7... Bxe4 {[%clk 0:00:52.2]} 8. Qxe4 {[%clk 0:00:53.7]} 8... Nc6 {[%clk 0:00:51.8]} 9. Be2 {[%clk 0:00:51.2]} 9... Nf6 {[%clk 0:00:51.5]} 10. Qe3 {[%clk 0:00:49.6]} 10... b6 {[%clk 0:00:47.1]} 11. Bf3 {[%clk 0:00:48.6]} 11... Bc5 {[%clk 0:00:46.2]} 12. Qg5 {[%clk 0:00:44.4]} 12... Qd6 {[%clk 0:00:39.2]} 13. Ne2 {[%clk 0:00:39]} 13... O-O {[%clk 0:00:37.1]} 14. Nc3 {[%clk 0:00:37]} 14... Bd4 {[%clk 0:00:34.2]} 15. Nb5 {[%clk 0:00:35.4]} 15... Qc5 {[%clk 0:00:33.3]} 16. Nxc7 {[%clk 0:00:29.9]} 16... Bf2+ {[%clk 0:00:32.4]} 17. Kd2 {[%clk 0:00:26.3]} 17... Rad8 {[%clk 0:00:28.2]} 18. Ne6 {[%clk 0:00:23.6]} 18... Qa5+ {[%clk 0:00:22.2]} 19. c3 {[%clk 0:00:20.4]} 19... Be3+ {[%clk 0:00:18.6]} 20. Qxe3 {[%clk 0:00:17.5]} 20... Nd5 {[%clk 0:00:18.3]} 21. Bxd5 {[%clk 0:00:15.6]} 21... Nd4 {[%clk 0:00:13.3]} 22. Nxd4+ {[%clk 0:00:10.6]} 22... Kh8 {[%clk 0:00:09.6]} 23. Nb3 {[%clk 0:00:05.2]} 23... Qxd5 {[%clk 0:00:07.8]} 24. Kc2 {[%clk 0:00:01.9]} 24... e4 {[%clk 0:00:07.5]} 25. d4 {[%clk 0:00:00.5]} 25... Rf5 {[%clk 0:00:04]} 0-1

[Event "Live Chess"]
[Site "Chess.com"]
[Date "2011.02.01"]
[Round "-"]
[White "hipposcottimus"]
[Black "rodolf"]
[Result "1-0"]
[CurrentPosition "8/8/8/4p1R1/3p1pkP/4r3/6PK/5R2 b - -"]
[Timezone "UTC"]
[ECO "B06"]
[ECOUrl "https://www.chess.com/openings/Modern-Defense-with-1-e4-2.d4-Bg7"]
[UTCDate "2011.02.01"]
[UTCTime "05:14:16"]
[WhiteElo "1703"]
[BlackElo "1571"]
[TimeControl "60"]
[Termination "hipposcottimus won on time"]
[StartTime "05:14:16"]
[EndDate "2011.02.01"]
[EndTime "05:16:33"]
[Link "https://www.chess.com/game/live/93533714"]

1. e4 {[%clk 0:01:00]} 1... g6 {[%clk 0:01:00]} 2. d4 {[%clk 0:00:59.7]} 2... Bg7 {[%clk 0:00:59.6]} 3. e5 {[%clk 0:00:59.3]} 3... Nf6 {[%clk 0:00:59.3]} 4. exf6 {[%clk 0:00:58.8]} 4... Bxf6 {[%clk 0:00:57.8]} 5. f4 {[%clk 0:00:58.5]} 5... O-O {[%clk 0:00:57.2]} 6. Nf3 {[%clk 0:00:58.2]} 6... Bg7 {[%clk 0:00:56.7]} 7. Bc4 {[%clk 0:00:57.8]} 7... e6 {[%clk 0:00:56.3]} 8. Nc3 {[%clk 0:00:57]} 8... d5 {[%clk 0:00:56]} 9. Bd3 {[%clk 0:00:54.9]} 9... c6 {[%clk 0:00:55.6]} 10. O-O {[%clk 0:00:53]} 10... Nd7 {[%clk 0:00:55.2]} 11. Na4 {[%clk 0:00:51.5]} 11... Nb6 {[%clk 0:00:54.9]} 12. Nc5 {[%clk 0:00:51.1]} 12... a6 {[%clk 0:00:50.7]} 13. Ne5 {[%clk 0:00:50.8]} 13... Bxe5 {[%clk 0:00:49.3]} 14. fxe5 {[%clk 0:00:50.5]} 14... Qe7 {[%clk 0:00:48.3]} 15. Qf3 {[%clk 0:00:50]} 15... Nd7 {[%clk 0:00:47.4]} 16. Nb3 {[%clk 0:00:47.6]} 16... c5 {[%clk 0:00:45.9]} 17. Bh6 {[%clk 0:00:46.9]} 17... Re8 {[%clk 0:00:44.1]} 18. dxc5 {[%clk 0:00:45.7]} 18... Nxc5 {[%clk 0:00:42.7]} 19. Nd4 {[%clk 0:00:45.5]} 19... Nxd3 {[%clk 0:00:40.7]} 20. cxd3 {[%clk 0:00:45.2]} 20... Bd7 {[%clk 0:00:38.6]} 21. Ne2 {[%clk 0:00:44.7]} 21... Rac8 {[%clk 0:00:37.4]} 22. Nf4 {[%clk 0:00:44.4]} 22... Kh8 {[%clk 0:00:33.7]} 23. Qg3 {[%clk 0:00:44.1]} 23... f5 {[%clk 0:00:31.9]} 24. Bg5 {[%clk 0:00:40.2]} 24... Qf7 {[%clk 0:00:30.9]} 25. Qh4 {[%clk 0:00:39.1]} 25... Rg8 {[%clk 0:00:30]} 26. Qh6 {[%clk 0:00:38.1]} 26... Qg7 {[%clk 0:00:28.5]} 27. Rf3 {[%clk 0:00:37.3]} 27... Qxh6 {[%clk 0:00:27]} 28. Bxh6 {[%clk 0:00:37.1]} 28... Be8 {[%clk 0:00:26.1]} 29. Bg5 {[%clk 0:00:35.8]} 29... Bf7 {[%clk 0:00:25.7]} 30. Rh3 {[%clk 0:00:35.4]} 30... Rg7 {[%clk 0:00:23.9]} 31. Bf6 {[%clk 0:00:34.9]} 31... Kg8 {[%clk 0:00:23]} 32. Bxg7 {[%clk 0:00:34.3]} 32... Kxg7 {[%clk 0:00:22.6]} 33. Rf1 {[%clk 0:00:31.7]} 33... Rc2 {[%clk 0:00:21.3]} 34. Rhf3 {[%clk 0:00:29.6]} 34... Rxb2 {[%clk 0:00:20.4]} 35. h3 {[%clk 0:00:29.2]} 35... Rxa2 {[%clk 0:00:19.5]} 36. Kh2 {[%clk 0:00:28.9]} 36... Ra3 {[%clk 0:00:18.6]} 37. Rg3 {[%clk 0:00:28.5]} 37... g5 {[%clk 0:00:17.2]} 38. Rxg5+ {[%clk 0:00:26.1]} 38... Kf8 {[%clk 0:00:16]} 39. Nh5 {[%clk 0:00:23.8]} 39... Ke7 {[%clk 0:00:15]} 40. Nf6 {[%clk 0:00:22.6]} 40... Rxd3 {[%clk 0:00:12.6]} 41. Nxh7 {[%clk 0:00:21.7]} 41... Re3 {[%clk 0:00:11.2]} 42. Rg7 {[%clk 0:00:20.8]} 42... Rxe5 {[%clk 0:00:09.4]} 43. Ng5 {[%clk 0:00:20.4]} 43... Kf6 {[%clk 0:00:08.6]} 44. Rxf7+ {[%clk 0:00:15.7]} 44... Kxg5 {[%clk 0:00:08.2]} 45. Rxb7 {[%clk 0:00:15.4]} 45... f4 {[%clk 0:00:06]} 46. Rb6 {[%clk 0:00:15]} 46... Re4 {[%clk 0:00:04.7]} 47. Rxa6 {[%clk 0:00:14.7]} 47... e5 {[%clk 0:00:04]} 48. Rd6 {[%clk 0:00:13.1]} 48... d4 {[%clk 0:00:03.3]} 49. h4+ {[%clk 0:00:12.6]} 49... Kf5 {[%clk 0:00:02.7]} 50. Rh6 {[%clk 0:00:11.6]} 50... Re3 {[%clk 0:00:02.2]} 51. Rh5+ {[%clk 0:00:11.3]} 51... Kg4 {[%clk 0:00:01.2]} 52. Rg5+ {[%clk 0:00:08.1]} 1-0

[Event "Live Chess"]
[Site "Chess.com"]
[Date "2011.02.01"]
[Round "-"]
[White "rodolf"]
[Black "hipposcottimus"]
[Result "1-0"]
[CurrentPosition "8/7R/5Q2/4p1pk/4P3/3P2K1/2r4P/8 b - -"]
[Timezone "UTC"]
[ECO "C20"]
[ECOUrl "https://www.chess.com/openings/Kings-Pawn-Opening-Kings-Head-Opening-2...Nf6"]
[UTCDate "2011.02.01"]
[UTCTime "05:12:03"]
[WhiteElo "1576"]
[BlackElo "1698"]
[TimeControl "60"]
[Termination "rodolf won by checkmate"]
[StartTime "05:12:03"]
[EndDate "2011.02.01"]
[EndTime "05:13:55"]
[Link "https://www.chess.com/game/live/93533256"]

1. e4 {[%clk 0:01:00]} 1... e5 {[%clk 0:01:00]} 2. f3 {[%clk 0:00:59.6]} 2... Nf6 {[%clk 0:00:58.1]} 3. d3 {[%clk 0:00:59.3]} 3... d5 {[%clk 0:00:57.7]} 4. Nc3 {[%clk 0:00:58.6]} 4... dxe4 {[%clk 0:00:57.4]} 5. fxe4 {[%clk 0:00:57.4]} 5... c5 {[%clk 0:00:55.8]} 6. Nf3 {[%clk 0:00:57]} 6... Bd6 {[%clk 0:00:55.3]} 7. Be2 {[%clk 0:00:56]} 7... Nc6 {[%clk 0:00:54.9]} 8. Be3 {[%clk 0:00:55.1]} 8... O-O {[%clk 0:00:54.1]} 9. O-O {[%clk 0:00:54.5]} 9... Nb4 {[%clk 0:00:52.1]} 10. a3 {[%clk 0:00:51.6]} 10... Nc6 {[%clk 0:00:51.4]} 11. Nd5 {[%clk 0:00:50.4]} 11... Bg4 {[%clk 0:00:51.2]} 12. Nxf6+ {[%clk 0:00:49]} 12... Qxf6 {[%clk 0:00:50.5]} 13. Qd2 {[%clk 0:00:46.4]} 13... Nd4 {[%clk 0:00:47.6]} 14. Nxd4 {[%clk 0:00:44.7]} 14... Bxe2 {[%clk 0:00:44.7]} 15. Nxe2 {[%clk 0:00:42.5]} 15... Bc7 {[%clk 0:00:43.5]} 16. Rxf6 {[%clk 0:00:41]} 16... gxf6 {[%clk 0:00:43.2]} 17. Ng3 {[%clk 0:00:40.1]} 17... Kh8 {[%clk 0:00:42.9]} 18. Nf5 {[%clk 0:00:39.3]} 18... Rg8 {[%clk 0:00:42.6]} 19. Qe2 {[%clk 0:00:38.7]} 19... Bd8 {[%clk 0:00:42.2]} 20. Rf1 {[%clk 0:00:37.6]} 20... Rg6 {[%clk 0:00:41.5]} 21. Nd6 {[%clk 0:00:37.1]} 21... Be7 {[%clk 0:00:39.5]} 22. Nxb7 {[%clk 0:00:36.1]} 22... Rb8 {[%clk 0:00:36.2]} 23. Na5 {[%clk 0:00:35.5]} 23... Rxb2 {[%clk 0:00:34.8]} 24. Nc4 {[%clk 0:00:34.9]} 24... Ra2 {[%clk 0:00:33.6]} 25. g4 {[%clk 0:00:31.1]} 25... Bd8 {[%clk 0:00:33.1]} 26. Bxc5 {[%clk 0:00:29.8]} 26... Bb6 {[%clk 0:00:32.8]} 27. Bxb6 {[%clk 0:00:28.6]} 27... axb6 {[%clk 0:00:32.5]} 28. Nxb6 {[%clk 0:00:28.1]} 28... Rxa3 {[%clk 0:00:31]} 29. Nd5 {[%clk 0:00:27.7]} 29... Ra5 {[%clk 0:00:30]} 30. Ne7 {[%clk 0:00:26.8]} 30... Rg7 {[%clk 0:00:28.3]} 31. Nf5 {[%clk 0:00:25.8]} 31... Rg5 {[%clk 0:00:27.1]} 32. Nd6 {[%clk 0:00:25.3]} 32... h5 {[%clk 0:00:25.6]} 33. Nxf7+ {[%clk 0:00:24.3]} 33... Kh7 {[%clk 0:00:23.6]} 34. Nxg5+ {[%clk 0:00:23.8]} 34... fxg5 {[%clk 0:00:23.3]} 35. gxh5 {[%clk 0:00:22.1]} 35... Kh6 {[%clk 0:00:23]} 36. Rf6+ {[%clk 0:00:20.9]} 36... Kg7 {[%clk 0:00:21.3]} 37. Qf3 {[%clk 0:00:20.5]} 37... Ra1+ {[%clk 0:00:19.4]} 38. Kg2 {[%clk 0:00:18.6]} 38... Ra2 {[%clk 0:00:18.9]} 39. Rf7+ {[%clk 0:00:17.8]} 39... Kh6 {[%clk 0:00:17.6]} 40. Kg3 {[%clk 0:00:17.2]} 40... Rxc2 {[%clk 0:00:15.1]} 41. Qf6+ {[%clk 0:00:16.6]} 41... Kxh5 {[%clk 0:00:14.5]} 42. Rh7# {[%clk 0:00:15.1]} 1-0

[Event "Live Chess"]
[Site "Chess.com"]
[Date "2011.02.01"]
[Round "-"]
[White "hipposcottimus"]
[Black "rodolf"]
[Result "1-0"]
[CurrentPosition "4r1k1/p6p/2q1p1p1/2p1RP2/P7/8/4RK1P/8 b - -"]
[Timezone "UTC"]
[ECO "B06"]
[ECOUrl "https://www.chess.com/openings/Modern-Defense-with-1-e4-2.d4-Bg7"]
[UTCDate "2011.02.01"]
[UTCTime "05:09:30"]
[WhiteElo "1708"]
[BlackElo "1564"]
[TimeControl "60"]
[Termination "hipposcottimus won on time"]
[StartTime "05:09:30"]
[EndDate "2011.02.01"]
[EndTime "05:11:49"]
[Link "https://www.chess.com/game/live/93532714"]

1. e4 {[%clk 0:01:00]} 1... g6 {[%clk 0:01:00]} 2. d4 {[%clk 0:00:59.4]} 2... Bg7 {[%clk 0:00:59.5]} 3. e5 {[%clk 0:00:59.2]} 3... Nf6 {[%clk 0:00:59.2]} 4. f4 {[%clk 0:00:58.6]} 4... Nd5 {[%clk 0:00:57.7]} 5. c4 {[%clk 0:00:56.3]} 5... Nb6 {[%clk 0:00:57.3]} 6. Nc3 {[%clk 0:00:55.4]} 6... d6 {[%clk 0:00:53.7]} 7. Nf3 {[%clk 0:00:54.2]} 7... N6d7 {[%clk 0:00:52.7]} 8. Be2 {[%clk 0:00:51]} 8... Nf8 {[%clk 0:00:52.2]} 9. O-O {[%clk 0:00:49.6]} 9... dxe5 {[%clk 0:00:50.9]} 10. fxe5 {[%clk 0:00:49.3]} 10... f6 {[%clk 0:00:49.4]} 11. Ne4 {[%clk 0:00:48.3]} 11... f5 {[%clk 0:00:48]} 12. Ng3 {[%clk 0:00:46.8]} 12... c6 {[%clk 0:00:46.7]} 13. Bd3 {[%clk 0:00:44.8]} 13... e6 {[%clk 0:00:46]} 14. Bc2 {[%clk 0:00:41.9]} 14... Qe7 {[%clk 0:00:45.4]} 15. Bb3 {[%clk 0:00:41.6]} 15... Nfd7 {[%clk 0:00:44.9]} 16. c5 {[%clk 0:00:41.4]} 16... O-O {[%clk 0:00:43.7]} 17. Bg5 {[%clk 0:00:40.5]} 17... Qf7 {[%clk 0:00:42.1]} 18. Bf6 {[%clk 0:00:40.2]} 18... Bxf6 {[%clk 0:00:40.7]} 19. exf6 {[%clk 0:00:39.9]} 19... Nxf6 {[%clk 0:00:40.1]} 20. Ne5 {[%clk 0:00:39.5]} 20... Qg7 {[%clk 0:00:37.9]} 21. Re1 {[%clk 0:00:39.2]} 21... Nd5 {[%clk 0:00:36.7]} 22. Ne2 {[%clk 0:00:39]} 22... Ne3 {[%clk 0:00:34.6]} 23. Nc3 {[%clk 0:00:38.7]} 23... Nxd1 {[%clk 0:00:32.8]} 24. Raxd1 {[%clk 0:00:38.5]} 24... Nd7 {[%clk 0:00:30.3]} 25. Na4 {[%clk 0:00:38.2]} 25... Nxe5 {[%clk 0:00:29.4]} 26. Rxe5 {[%clk 0:00:37]} 26... Bd7 {[%clk 0:00:28.3]} 27. Nc3 {[%clk 0:00:36.5]} 27... Rfe8 {[%clk 0:00:26.8]} 28. Rde1 {[%clk 0:00:36.2]} 28... Rad8 {[%clk 0:00:26.1]} 29. Ne2 {[%clk 0:00:35.4]} 29... Qf6 {[%clk 0:00:24.8]} 30. Nf4 {[%clk 0:00:35.1]} 30... Qg5 {[%clk 0:00:23.6]} 31. Nh3 {[%clk 0:00:34.5]} 31... Qg4 {[%clk 0:00:22.4]} 32. Nf2 {[%clk 0:00:33.2]} 32... Qxd4 {[%clk 0:00:21.6]} 33. Kf1 {[%clk 0:00:27.1]} 33... Qxb2 {[%clk 0:00:20.6]} 34. Bc4 {[%clk 0:00:25.1]} 34... Qd4 {[%clk 0:00:18.1]} 35. Bb3 {[%clk 0:00:24.7]} 35... Qb4 {[%clk 0:00:17]} 36. R1e3 {[%clk 0:00:22.7]} 36... b6 {[%clk 0:00:15.1]} 37. Nd3 {[%clk 0:00:22]} 37... Qb5 {[%clk 0:00:13.3]} 38. Kf2 {[%clk 0:00:18.1]} 38... bxc5 {[%clk 0:00:12.5]} 39. Nc1 {[%clk 0:00:17.3]} 39... Qb6 {[%clk 0:00:11.6]} 40. a4 {[%clk 0:00:17]} 40... c4 {[%clk 0:00:10.4]} 41. Bxc4 {[%clk 0:00:16.3]} 41... Qb2+ {[%clk 0:00:08.9]} 42. Ne2 {[%clk 0:00:13.7]} 42... Qc1 {[%clk 0:00:08.6]} 43. Bd3 {[%clk 0:00:12.3]} 43... Qb2 {[%clk 0:00:07.2]} 44. Ba6 {[%clk 0:00:11.7]} 44... c5 {[%clk 0:00:06.2]} 45. Bb7 {[%clk 0:00:10.7]} 45... Qb6 {[%clk 0:00:05.6]} 46. Bf3 {[%clk 0:00:09.8]} 46... Bc6 {[%clk 0:00:04.1]} 47. g4 {[%clk 0:00:09]} 47... Bxf3 {[%clk 0:00:02.7]} 48. Kxf3 {[%clk 0:00:08.7]} 48... Qc6+ {[%clk 0:00:02.2]} 49. Kf2 {[%clk 0:00:07.5]} 49... Rd2 {[%clk 0:00:01.9]} 50. gxf5 {[%clk 0:00:06.8]} 50... Rxe2+ {[%clk 0:00:00.6]} 51. Rxe2 {[%clk 0:00:06.5]} 1-0

[Event "Live Chess"]
[Site "Chess.com"]
[Date "2011.02.01"]
[Round "-"]
[White "rodolf"]
[Black "hipposcottimus"]
[Result "0-1"]
[CurrentPosition "8/p6p/1p3kp1/8/2B5/B1R5/PP4PP/6K1 w - -"]
[Timezone "UTC"]
[ECO "C20"]
[ECOUrl "https://www.chess.com/openings/Kings-Pawn-Opening-Kings-Head-Opening"]
[UTCDate "2011.02.01"]
[UTCTime "05:07:02"]
[WhiteElo "1569"]
[BlackElo "1703"]
[TimeControl "60"]
[Termination "hipposcottimus won on time"]
[StartTime "05:07:02"]
[EndDate "2011.02.01"]
[EndTime "05:09:09"]
[Link "https://www.chess.com/game/live/93532232"]

1. e4 {[%clk 0:01:00]} 1... e5 {[%clk 0:01:00]} 2. f3 {[%clk 0:00:58.8]} 2... Nc6 {[%clk 0:00:59.7]} 3. d3 {[%clk 0:00:58.2]} 3... Nf6 {[%clk 0:00:59.4]} 4. c3 {[%clk 0:00:57.7]} 4... d5 {[%clk 0:00:59.1]} 5. Qc2 {[%clk 0:00:57.3]} 5... dxe4 {[%clk 0:00:58.4]} 6. fxe4 {[%clk 0:00:56.9]} 6... Bd6 {[%clk 0:00:57.7]} 7. Be3 {[%clk 0:00:56.4]} 7... Bg4 {[%clk 0:00:56.7]} 8. Nd2 {[%clk 0:00:56]} 8... O-O {[%clk 0:00:54.4]} 9. Ngf3 {[%clk 0:00:55.5]} 9... Rc8 {[%clk 0:00:54.1]} 10. Be2 {[%clk 0:00:54.8]} 10... Be6 {[%clk 0:00:52.3]} 11. O-O {[%clk 0:00:53.4]} 11... Ne7 {[%clk 0:00:51.1]} 12. d4 {[%clk 0:00:52.1]} 12... c5 {[%clk 0:00:50.8]} 13. d5 {[%clk 0:00:50.9]} 13... Nexd5 {[%clk 0:00:48.3]} 14. exd5 {[%clk 0:00:48.3]} 14... Bxd5 {[%clk 0:00:48]} 15. Ng5 {[%clk 0:00:45.4]} 15... Bc6 {[%clk 0:00:47.7]} 16. Nc4 {[%clk 0:00:43.5]} 16... e4 {[%clk 0:00:47]} 17. Rad1 {[%clk 0:00:39.6]} 17... Qc7 {[%clk 0:00:44]} 18. Nxd6 {[%clk 0:00:38.1]} 18... Rcd8 {[%clk 0:00:42.3]} 19. Bxc5 {[%clk 0:00:36.9]} 19... Nd5 {[%clk 0:00:39.4]} 20. Ngxe4 {[%clk 0:00:31.9]} 20... b6 {[%clk 0:00:38.7]} 21. Ba3 {[%clk 0:00:29]} 21... Rxd6 {[%clk 0:00:30.4]} 22. Nxd6 {[%clk 0:00:27.3]} 22... Qd7 {[%clk 0:00:30.2]} 23. c4 {[%clk 0:00:22.5]} 23... Rd8 {[%clk 0:00:29.5]} 24. cxd5 {[%clk 0:00:20.7]} 24... Bxd5 {[%clk 0:00:29.1]} 25. Rxd5 {[%clk 0:00:18.6]} 25... Rc8 {[%clk 0:00:28.7]} 26. Qd3 {[%clk 0:00:17.7]} 26... Qc6 {[%clk 0:00:26.8]} 27. Qf5 {[%clk 0:00:16.5]} 27... g6 {[%clk 0:00:25.3]} 28. Qxf7+ {[%clk 0:00:15.3]} 28... Kh8 {[%clk 0:00:25.1]} 29. Qf6+ {[%clk 0:00:13.3]} 29... Kg8 {[%clk 0:00:23.1]} 30. Qf7+ {[%clk 0:00:11.8]} 30... Kh8 {[%clk 0:00:22.2]} 31. Qf6+ {[%clk 0:00:09.6]} 31... Kg8 {[%clk 0:00:21.9]} 32. Nf7 {[%clk 0:00:08.6]} 32... Qxf6 {[%clk 0:00:19.5]} 33. Rd8+ {[%clk 0:00:06.8]} 33... Kxf7 {[%clk 0:00:18.1]} 34. Rxc8 {[%clk 0:00:04.8]} 34... Qxf1+ {[%clk 0:00:15.8]} 35. Bxf1 {[%clk 0:00:02.9]} 35... Ke6 {[%clk 0:00:15.5]} 36. Rc4 {[%clk 0:00:01.3]} 36... Kd7 {[%clk 0:00:15.1]} 37. Rc3 {[%clk 0:00:00.8]} 37... Ke6 {[%clk 0:00:13.1]} 38. Bc4+ {[%clk 0:00:00.2]} 38... Kf6 {[%clk 0:00:11.8]} 0-1

[Event "Live Chess"]
[Site "Chess.com"]
[Date "2011.02.01"]
[Round "-"]
[White "hipposcottimus"]
[Black "dspitt01"]
[Result "0-1"]
[CurrentPosition "6k1/5ppp/p3pb2/6P1/8/1P6/P1P5/1K1r4 w - -"]
[Timezone "UTC"]
[ECO "A06"]
[ECOUrl "https://www.chess.com/openings/Reti-Opening-Tennison-Gambit"]
[UTCDate "2011.02.01"]
[UTCTime "05:04:57"]
[WhiteElo "1698"]
[BlackElo "1898"]
[TimeControl "60"]
[Termination "dspitt01 won by checkmate"]
[StartTime "05:04:57"]
[EndDate "2011.02.01"]
[EndTime "05:06:35"]
[Link "https://www.chess.com/game/live/93531764"]

1. e4 {[%clk 0:01:00]} 1... d5 {[%clk 0:01:00]} 2. Nf3 {[%clk 0:00:59.6]} 2... dxe4 {[%clk 0:00:59.2]} 3. Ng5 {[%clk 0:00:59.3]} 3... Nf6 {[%clk 0:00:58.9]} 4. f3 {[%clk 0:00:57.8]} 4... exf3 {[%clk 0:00:57.8]} 5. Nxf3 {[%clk 0:00:56.9]} 5... Bg4 {[%clk 0:00:56.3]} 6. Be2 {[%clk 0:00:56.2]} 6... Bxf3 {[%clk 0:00:55.1]} 7. Bxf3 {[%clk 0:00:55.9]} 7... c6 {[%clk 0:00:54.8]} 8. O-O {[%clk 0:00:54.4]} 8... e6 {[%clk 0:00:54.4]} 9. d4 {[%clk 0:00:54]} 9... Bd6 {[%clk 0:00:53.3]} 10. Bg5 {[%clk 0:00:53.7]} 10... O-O {[%clk 0:00:50.5]} 11. Be2 {[%clk 0:00:47.7]} 11... Nbd7 {[%clk 0:00:49.7]} 12. Bc4 {[%clk 0:00:46]} 12... Qc7 {[%clk 0:00:48.7]} 13. Nc3 {[%clk 0:00:45.3]} 13... Bxh2+ {[%clk 0:00:46.9]} 14. Kf2 {[%clk 0:00:45]} 14... Bg3+ {[%clk 0:00:46]} 15. Ke2 {[%clk 0:00:43.5]} 15... b5 {[%clk 0:00:42.7]} 16. Bxb5 {[%clk 0:00:40.6]} 16... cxb5 {[%clk 0:00:41.7]} 17. Nxb5 {[%clk 0:00:38.5]} 17... Qc4+ {[%clk 0:00:40.9]} 18. Qd3 {[%clk 0:00:38.2]} 18... Qxd3+ {[%clk 0:00:39.9]} 19. Kxd3 {[%clk 0:00:37.9]} 19... a6 {[%clk 0:00:37.7]} 20. Nc3 {[%clk 0:00:36.7]} 20... Rab8 {[%clk 0:00:36.1]} 21. b3 {[%clk 0:00:33.3]} 21... Rfe8 {[%clk 0:00:33]} 22. Rae1 {[%clk 0:00:32.7]} 22... Nd5 {[%clk 0:00:28.6]} 23. Rd1 {[%clk 0:00:31.3]} 23... Nxc3 {[%clk 0:00:27.4]} 24. Kxc3 {[%clk 0:00:30.8]} 24... Rbc8+ {[%clk 0:00:26.9]} 25. Kb2 {[%clk 0:00:30.4]} 25... Nb6 {[%clk 0:00:25.5]} 26. d5 {[%clk 0:00:28.9]} 26... Nxd5 {[%clk 0:00:24.4]} 27. Be3 {[%clk 0:00:28.6]} 27... Be5+ {[%clk 0:00:23.3]} 28. Kb1 {[%clk 0:00:26.9]} 28... Nxe3 {[%clk 0:00:22.8]} 29. Rfe1 {[%clk 0:00:26.6]} 29... Nxd1 {[%clk 0:00:22.1]} 30. Rxd1 {[%clk 0:00:26.3]} 30... Bf6 {[%clk 0:00:21.1]} 31. Re1 {[%clk 0:00:25.9]} 31... Rcd8 {[%clk 0:00:20.4]} 32. Rg1 {[%clk 0:00:25.6]} 32... Rd2 {[%clk 0:00:19.3]} 33. g4 {[%clk 0:00:24.9]} 33... Red8 {[%clk 0:00:19]} 34. g5 {[%clk 0:00:24.6]} 34... Rd1+ {[%clk 0:00:17.2]} 35. Rxd1 {[%clk 0:00:22.8]} 35... Rxd1# {[%clk 0:00:16.9]} 0-1

[Event "Live Chess"]
[Site "Chess.com"]
[Date "2011.02.01"]
[Round "-"]
[White "hipposcottimus"]
[Black "smart_indi"]
[Result "1-0"]
[CurrentPosition "1r4r1/2k1np1p/2q5/2p1Q3/8/1PP5/P2K1P1P/RN5R b - -"]
[Timezone "UTC"]
[ECO "A43"]
[ECOUrl "https://www.chess.com/openings/Old-Benoni-Defense-Franco-Benoni-Defense"]
[UTCDate "2011.02.01"]
[UTCTime "05:01:57"]
[WhiteElo "1702"]
[BlackElo "1744"]
[TimeControl "60"]
[Termination "hipposcottimus won on time"]
[StartTime "05:01:57"]
[EndDate "2011.02.01"]
[EndTime "05:03:46"]
[Link "https://www.chess.com/game/live/93531201"]

1. e4 {[%clk 0:01:00]} 1... e6 {[%clk 0:01:00]} 2. d4 {[%clk 0:00:56.3]} 2... c5 {[%clk 0:00:59.6]} 3. d5 {[%clk 0:00:54.9]} 3... Bd6 {[%clk 0:00:58.3]} 4. Nf3 {[%clk 0:00:51.4]} 4... exd5 {[%clk 0:00:57.2]} 5. e5 {[%clk 0:00:50.5]} 5... Be7 {[%clk 0:00:54.8]} 6. Qxd5 {[%clk 0:00:50]} 6... d6 {[%clk 0:00:53]} 7. Bc4 {[%clk 0:00:48]} 7... Be6 {[%clk 0:00:51.7]} 8. Qxb7 {[%clk 0:00:46.1]} 8... Nd7 {[%clk 0:00:39.2]} 9. exd6 {[%clk 0:00:39.6]} 9... Bxc4 {[%clk 0:00:36.5]} 10. dxe7 {[%clk 0:00:38.7]} 10... Nxe7 {[%clk 0:00:33.8]} 11. b3 {[%clk 0:00:36.2]} 11... Bd5 {[%clk 0:00:27.2]} 12. Qa6 {[%clk 0:00:35.2]} 12... Bxf3 {[%clk 0:00:26.1]} 13. gxf3 {[%clk 0:00:34.7]} 13... Ne5 {[%clk 0:00:25.1]} 14. Be3 {[%clk 0:00:34.3]} 14... Nxf3+ {[%clk 0:00:24.1]} 15. Ke2 {[%clk 0:00:34.1]} 15... Nd4+ {[%clk 0:00:19.9]} 16. Bxd4 {[%clk 0:00:32.2]} 16... Qxd4 {[%clk 0:00:19.2]} 17. Qb5+ {[%clk 0:00:31.9]} 17... Kd8 {[%clk 0:00:13.7]} 18. c3 {[%clk 0:00:30.1]} 18... Qe5+ {[%clk 0:00:12]} 19. Kd2 {[%clk 0:00:28.3]} 19... Rb8 {[%clk 0:00:10.5]} 20. Qa5+ {[%clk 0:00:26.4]} 20... Kd7 {[%clk 0:00:08.9]} 21. Qxa7+ {[%clk 0:00:25.1]} 21... Qc7 {[%clk 0:00:05.9]} 22. Qa4+ {[%clk 0:00:24.7]} 22... Qc6 {[%clk 0:00:03.9]} 23. Qg4+ {[%clk 0:00:24.4]} 23... Kc7 {[%clk 0:00:02.1]} 24. Qxg7 {[%clk 0:00:23.8]} 24... Rhg8 {[%clk 0:00:00.8]} 25. Qe5+ {[%clk 0:00:22.9]} 1-0